[Event "*** SCC Grand Prix: Titled Tuesday Blitz"]
[Site "Chess.com"]
[Date "2020.09.29"]
[Round "9"]
[White "Brave_spirit12"]
[Black "keepitcool9499"]
[Result "1-0"]
[WhiteElo "2465"]
[BlackElo "2598"]
[TimeControl "180+1"]
[EndTime "11:45:34 PDT"]
[Termination "Brave_spirit12 won by checkmate"]

1. e4 {[%clk 0:03:00.1]} 1... e6 {[%clk 0:03:00.9]} 2. d4 {[%clk 0:02:59.6]}
2... d5 {[%clk 0:03:01.8]} 3. exd5 {[%clk 0:03:00.5]} 3... exd5 {[%clk
0:03:02.7]} 4. Nc3 {[%clk 0:03:01.4]} 4... Nf6 {[%clk 0:03:03.3]} 5. Bd3 {[%clk
0:03:02.3]} 5... Bd6 {[%clk 0:03:03.8]} 6. Nge2 {[%clk 0:03:03.2]} 6... O-O
{[%clk 0:03:03.9]} 7. Bg5 {[%clk 0:03:03.8]} 7... c6 {[%clk 0:03:04.2]} 8. Qd2
{[%clk 0:03:04.3]} 8... Bg4 {[%clk 0:03:04.6]} 9. f3 {[%clk 0:03:03.8]} 9... Bh5
{[%clk 0:03:05.2]} 10. O-O-O {[%clk 0:03:04.4]} 10... Bg6 {[%clk 0:03:06.1]} 11.
h4 {[%clk 0:03:04.8]} 11... Bxd3 {[%clk 0:03:06]} 12. Qxd3 {[%clk 0:03:05.7]}
12... Nbd7 {[%clk 0:03:06.6]} 13. h5 {[%clk 0:03:05.7]} 13... b5 {[%clk
0:03:06.2]} 14. g4 {[%clk 0:03:06]} 14... a5 {[%clk 0:03:05.2]} 15. Bh4 {[%clk
0:03:05.9]} 15... Qc7 {[%clk 0:02:57.8]} 16. Kb1 {[%clk 0:02:59]} 16... a4
{[%clk 0:02:56.7]} 17. Bxf6 {[%clk 0:02:56.6]} 17... Nxf6 {[%clk 0:02:55.9]} 18.
g5 {[%clk 0:02:57.1]} 18... Nd7 {[%clk 0:02:56.3]} 19. Rdg1 {[%clk 0:02:56]}
19... b4 {[%clk 0:02:52.2]} 20. Nd1 {[%clk 0:02:55.8]} 20... Rfb8 {[%clk
0:02:34.5]} 21. g6 {[%clk 0:02:54.9]} 21... fxg6 {[%clk 0:02:02.4]} 22. hxg6
{[%clk 0:02:52.3]} 22... h6 {[%clk 0:02:02.2]} 23. Qf5 {[%clk 0:02:48.4]} 23...
Nf8 {[%clk 0:01:57.9]} 24. Ne3 {[%clk 0:02:25.5]} 24... Re8 {[%clk 0:01:53.8]}
25. Qf7+ {[%clk 0:00:21.6]} 25... Qxf7 {[%clk 0:01:48.5]} 26. gxf7+ {[%clk
0:00:22.5]} 26... Kxf7 {[%clk 0:01:48.9]} 27. Nf5 {[%clk 0:00:23.4]} 27... Rxe2
{[%clk 0:01:41.3]} 28. Nxd6+ {[%clk 0:00:22.8]} 28... Kf6 {[%clk 0:01:38]} 29.
Nb7 {[%clk 0:00:19]} 29... Ne6 {[%clk 0:01:33.1]} 30. Rh4 {[%clk 0:00:17.5]}
30... b3 {[%clk 0:01:01.7]} 31. cxb3 {[%clk 0:00:12.6]} 31... axb3 {[%clk
0:01:02.6]} 32. a3 {[%clk 0:00:13]} 32... Ra7 {[%clk 0:00:53.2]} 33. Nd6 {[%clk
0:00:06.7]} 33... Rd7 {[%clk 0:00:50.9]} 34. Nc8 {[%clk 0:00:06.9]} 34... Rd8
{[%clk 0:00:48.3]} 35. Nb6 {[%clk 0:00:06.9]} 35... Ng5 {[%clk 0:00:43.5]} 36.
Rf4+ {[%clk 0:00:05.4]} 36... Ke7 {[%clk 0:00:41.3]} 37. Na4 {[%clk 0:00:05.6]}
37... Ne6 {[%clk 0:00:39.3]} 38. Rfg4 {[%clk 0:00:04.9]} 38... Kf6 {[%clk
0:00:39]} 39. Nc3 {[%clk 0:00:04]} 39... g5 {[%clk 0:00:38.6]} 40. Nxe2 {[%clk
0:00:03.7]} 40... c5 {[%clk 0:00:38.1]} 41. f4 {[%clk 0:00:03.9]} 41... cxd4
{[%clk 0:00:36.9]} 42. fxg5+ {[%clk 0:00:03.7]} 42... hxg5 {[%clk 0:00:37.4]}
43. Nxd4 {[%clk 0:00:04.6]} 43... Nf4 {[%clk 0:00:37.4]} 44. Ne2 {[%clk
0:00:03.9]} 44... Nxe2 {[%clk 0:00:36.8]} 45. Rf1+ {[%clk 0:00:04.5]} 45... Nf4
{[%clk 0:00:36.5]} 46. Rg3 {[%clk 0:00:04.4]} 46... Kf5 {[%clk 0:00:36]} 47. Kc1
{[%clk 0:00:04.7]} 47... Ke4 {[%clk 0:00:33.5]} 48. Kd2 {[%clk 0:00:04.7]} 48...
Rg8 {[%clk 0:00:29.5]} 49. Rxb3 {[%clk 0:00:04.6]} 49... g4 {[%clk 0:00:29.2]}
50. Re3+ {[%clk 0:00:05]} 50... Kf5 {[%clk 0:00:28.7]} 51. Rg3 {[%clk
0:00:05.4]} 51... Ke5 {[%clk 0:00:25.9]} 52. b4 {[%clk 0:00:04.8]} 52... Ne6
{[%clk 0:00:24.2]} 53. Rfg1 {[%clk 0:00:05]} 53... Kf4 {[%clk 0:00:20.1]} 54. b5
{[%clk 0:00:03.5]} 54... Nd4 {[%clk 0:00:20.4]} 55. R1g2 {[%clk 0:00:03.3]}
55... Nxb5 {[%clk 0:00:18.8]} 56. a4 {[%clk 0:00:03.9]} 56... Nd4 {[%clk
0:00:18.1]} 57. Rd3 {[%clk 0:00:04.1]} 57... Nf3+ {[%clk 0:00:18.2]} 58. Kd1
{[%clk 0:00:04.6]} 58... d4 {[%clk 0:00:18.6]} 59. a5 {[%clk 0:00:04.5]} 59...
Ke4 {[%clk 0:00:19.1]} 60. Ra3 {[%clk 0:00:04.2]} 60... Rh8 {[%clk 0:00:17.8]}
61. a6 {[%clk 0:00:04.1]} 61... Rh1+ {[%clk 0:00:18.4]} 62. Ke2 {[%clk
0:00:03.2]} 62... Re1+ {[%clk 0:00:18.6]} 63. Kf2 {[%clk 0:00:03.8]} 63... d3
{[%clk 0:00:14.7]} 64. Rxg4+ {[%clk 0:00:04.1]} 64... Kf5 {[%clk 0:00:14.2]} 65.
Kxf3 {[%clk 0:00:04.6]} 65... d2 {[%clk 0:00:14.3]} 66. Rd4 {[%clk 0:00:03.1]}
66... d1=Q+ {[%clk 0:00:13.5]} 67. Rxd1 {[%clk 0:00:04]} 67... Rxd1 {[%clk
0:00:14]} 68. a7 {[%clk 0:00:04.7]} 68... Rd8 {[%clk 0:00:14.5]} 69. a8=Q {[%clk
0:00:05.1]} 69... Rxa8 {[%clk 0:00:13.8]} 70. Rxa8 {[%clk 0:00:06]} 70... Ke6
{[%clk 0:00:14.5]} 71. Ra4 {[%clk 0:00:06.7]} 71... Kd5 {[%clk 0:00:14.9]} 72.
Re4 {[%clk 0:00:07.6]} 72... Kc5 {[%clk 0:00:15.8]} 73. Ke3 {[%clk 0:00:08.5]}
73... Kb5 {[%clk 0:00:16.7]} 74. Kd3 {[%clk 0:00:09.4]} 74... Kc5 {[%clk
0:00:17.6]} 75. Rd4 {[%clk 0:00:10.3]} 75... Kb5 {[%clk 0:00:17.6]} 76. Kc3
{[%clk 0:00:11.2]} 76... Kc5 {[%clk 0:00:18.5]} 77. Kd3 {[%clk 0:00:11.5]} 77...
Kc6 {[%clk 0:00:19.4]} 78. Kc4 {[%clk 0:00:11.6]} 78... Kb6 {[%clk 0:00:20.3]}
79. Rd6+ {[%clk 0:00:11.9]} 79... Kc7 {[%clk 0:00:20.3]} 80. Kc5 {[%clk
0:00:12.3]} 80... Kc8 {[%clk 0:00:20.2]} 81. Kb6 {[%clk 0:00:12]} 81... Kb8
{[%clk 0:00:19.9]} 82. Rd8# {[%clk 0:00:12.9]} 1-0

[Event "*** SCC Grand Prix: Titled Tuesday Blitz"]
[Site "Chess.com"]
[Date "2020.09.29"]
[Round "9"]
[White "Aborigen_came"]
[Black "StellarChessPro"]
[Result "1-0"]
[WhiteElo "2737"]
[BlackElo "2494"]
[TimeControl "180+1"]
[EndTime "11:45:37 PDT"]
[Termination "Aborigen_came won by resignation"]

1. Nc3 {[%clk 0:02:07.5]} 1... g6 {[%clk 0:02:58.7]} 2. h4 {[%clk 0:02:05.4]}
2... Bg7 {[%clk 0:02:59.6]} 3. h5 {[%clk 0:02:05.5]} 3... d6 {[%clk 0:02:54.5]}
4. d4 {[%clk 0:02:04.8]} 4... c6 {[%clk 0:02:51.2]} 5. h6 {[%clk 0:02:02.6]}
5... Bf8 {[%clk 0:02:50.5]} 6. e4 {[%clk 0:02:02.8]} 6... e6 {[%clk 0:02:46.9]}
7. Nf3 {[%clk 0:02:00.7]} 7... Nd7 {[%clk 0:02:46.2]} 8. Bf4 {[%clk 0:01:50.5]}
8... a6 {[%clk 0:02:40.4]} 9. Qd2 {[%clk 0:01:42.8]} 9... b5 {[%clk 0:02:39.5]}
10. a4 {[%clk 0:01:30.7]} 10... b4 {[%clk 0:02:38.5]} 11. Ne2 {[%clk 0:01:29.8]}
11... a5 {[%clk 0:02:39.1]} 12. Nc1 {[%clk 0:01:27.1]} 12... Ngf6 {[%clk
0:02:38.6]} 13. Bd3 {[%clk 0:01:23.7]} 13... Be7 {[%clk 0:02:34.4]} 14. Nb3
{[%clk 0:01:22.2]} 14... O-O {[%clk 0:02:32.4]} 15. e5 {[%clk 0:01:20.8]} 15...
Nd5 {[%clk 0:02:24]} 16. exd6 {[%clk 0:01:20]} 16... Nxf4 {[%clk 0:02:20.8]} 17.
Qxf4 {[%clk 0:01:19.2]} 17... Bf6 {[%clk 0:02:17]} 18. Ne5 {[%clk 0:01:17]}
18... Nxe5 {[%clk 0:01:56.9]} 19. dxe5 {[%clk 0:01:16.3]} 19... Bg5 {[%clk
0:01:57.5]} 20. Qe4 {[%clk 0:01:13.9]} 20... f5 {[%clk 0:01:49.7]} 21. Qxc6
{[%clk 0:01:04.7]} 21... Bd7 {[%clk 0:01:47.4]} 22. Qc5 {[%clk 0:00:59.3]} 22...
Qb8 {[%clk 0:01:43.3]} 23. Qd4 {[%clk 0:00:56.1]} 23... Rc8 {[%clk 0:01:36.5]}
24. Nc5 {[%clk 0:00:36.8]} 24... Qa7 {[%clk 0:01:24.2]} 25. Nb3 {[%clk 0:00:36]}
25... Qb7 {[%clk 0:01:20.7]} 26. O-O {[%clk 0:00:30.4]} 26... Bxh6 {[%clk
0:01:17]} 27. f4 {[%clk 0:00:20.6]} 27... g5 {[%clk 0:01:07.4]} 28. g3 {[%clk
0:00:19.4]} 28... gxf4 {[%clk 0:01:06.8]} 29. gxf4 {[%clk 0:00:19.5]} 29... Kh8
{[%clk 0:01:07.2]} 30. Kf2 {[%clk 0:00:19.5]} 30... Rg8 {[%clk 0:01:03.4]} 31.
Rg1 {[%clk 0:00:19.7]} 31... Rac8 {[%clk 0:00:47.9]} 32. Rxg8+ {[%clk
0:00:18.1]} 32... Rxg8 {[%clk 0:00:46.1]} 33. Rg1 {[%clk 0:00:18.5]} 33... Rxg1
{[%clk 0:00:44.8]} 34. Kxg1 {[%clk 0:00:19.4]} 34... Qf3 {[%clk 0:00:43.9]} 35.
Qf2 {[%clk 0:00:18.9]} 35... Qg4+ {[%clk 0:00:38.9]} 36. Qg2 {[%clk 0:00:16.8]}
36... Qxf4 {[%clk 0:00:32.9]} 37. Nc5 {[%clk 0:00:16.2]} 37... Qd4+ {[%clk
0:00:30.3]} 38. Kf1 {[%clk 0:00:14.8]} 38... Qxc5 {[%clk 0:00:29.3]} 39. Qa8+
{[%clk 0:00:15.2]} 39... Kg7 {[%clk 0:00:29]} 40. Qd8 {[%clk 0:00:15.1]} 40...
Qc6 {[%clk 0:00:16.6]} 41. Qf6+ {[%clk 0:00:15]} 41... Kg8 {[%clk 0:00:16.3]}
42. Qxh6 {[%clk 0:00:14.5]} 42... Qf3+ {[%clk 0:00:15.2]} 43. Ke1 {[%clk
0:00:14.3]} 43... Qg3+ {[%clk 0:00:14.1]} 44. Kd2 {[%clk 0:00:13.8]} 44... Qxe5
{[%clk 0:00:14.2]} 45. Qg5+ {[%clk 0:00:13.7]} 45... Qg7 {[%clk 0:00:08.5]} 46.
Qd8+ {[%clk 0:00:12.7]} 46... Qf8 {[%clk 0:00:05.3]} 47. Qxd7 {[%clk 0:00:12.5]}
47... Qf6 {[%clk 0:00:05.8]} 48. Qe8+ {[%clk 0:00:11.7]} 48... Kg7 {[%clk
0:00:06.1]} 49. Qe7+ {[%clk 0:00:11.5]} 49... Qxe7 {[%clk 0:00:06.5]} 50. dxe7
{[%clk 0:00:11.9]} 50... Kf7 {[%clk 0:00:07.4]} 51. c3 {[%clk 0:00:12.2]} 51...
bxc3+ {[%clk 0:00:06.9]} 52. Kxc3 {[%clk 0:00:10.2]} 52... Kxe7 {[%clk
0:00:07.8]} 53. Kc4 {[%clk 0:00:08.9]} 53... h5 {[%clk 0:00:07.8]} 54. Kb5
{[%clk 0:00:08.5]} 54... h4 {[%clk 0:00:08.2]} 55. Kxa5 {[%clk 0:00:08]} 55...
h3 {[%clk 0:00:08.1]} 56. Bf1 {[%clk 0:00:08.5]} 56... h2 {[%clk 0:00:07.9]} 57.
Bg2 {[%clk 0:00:08.8]} 57... e5 {[%clk 0:00:08.8]} 58. Kb4 {[%clk 0:00:08]}
58... e4 {[%clk 0:00:09.7]} 59. a5 {[%clk 0:00:07.2]} 59... Kd6 {[%clk
0:00:09.9]} 60. Kc4 {[%clk 0:00:05.8]} 60... Kc6 {[%clk 0:00:08.9]} 61. Kd4
{[%clk 0:00:05.7]} 61... Kb5 {[%clk 0:00:09.8]} 62. b4 {[%clk 0:00:05.8]} 62...
Ka6 {[%clk 0:00:08.9]} 63. Ke3 {[%clk 0:00:06]} 63... Kb5 {[%clk 0:00:09.5]} 64.
Kf4 {[%clk 0:00:05.6]} 64... Ka6 {[%clk 0:00:09.8]} 65. Kg3 {[%clk 0:00:05.3]}
65... Kb5 {[%clk 0:00:09.5]} 66. Kxh2 {[%clk 0:00:05.2]} 66... Kxb4 {[%clk
0:00:08.9]} 67. a6 {[%clk 0:00:05.1]} 67... e3 {[%clk 0:00:09.8]} 68. Bf3 {[%clk
0:00:04.5]} 68... Kc3 {[%clk 0:00:07.5]} 69. a7 {[%clk 0:00:04.5]} 69... e2
{[%clk 0:00:08.4]} 70. Bxe2 {[%clk 0:00:04.2]} 70... f4 {[%clk 0:00:08.2]} 71.
a8=Q {[%clk 0:00:05.1]} 1-0

[Event "*** SCC Grand Prix: Titled Tuesday Blitz"]
[Site "Chess.com"]
[Date "2020.09.29"]
[Round "9"]
[White "sokidze"]
[Black "SanchezKelvin"]
[Result "1/2-1/2"]
[WhiteElo "2604"]
[BlackElo "2404"]
[TimeControl "180+1"]
[EndTime "11:46:15 PDT"]
[Termination "Game drawn - insufficient material"]

1. d4 {[%clk 0:03:00.9]} 1... d5 {[%clk 0:02:40.2]} 2. Nf3 {[%clk 0:03:00.9]}
2... Nf6 {[%clk 0:02:38.3]} 3. g3 {[%clk 0:03:01]} 3... c6 {[%clk 0:02:37.6]} 4.
Bg2 {[%clk 0:03:01.4]} 4... e6 {[%clk 0:02:37.9]} 5. O-O {[%clk 0:03:01]} 5...
Nbd7 {[%clk 0:02:38.6]} 6. c4 {[%clk 0:03:01.4]} 6... dxc4 {[%clk 0:02:38.8]} 7.
Nfd2 {[%clk 0:02:46.5]} 7... Nb6 {[%clk 0:02:36.5]} 8. e3 {[%clk 0:02:46.8]}
8... c5 {[%clk 0:02:28.4]} 9. Nxc4 {[%clk 0:02:25.3]} 9... cxd4 {[%clk
0:02:17.1]} 10. Nxb6 {[%clk 0:02:23.6]} 10... Qxb6 {[%clk 0:02:16.5]} 11. exd4
{[%clk 0:02:23.9]} 11... Bd7 {[%clk 0:02:06.9]} 12. Nc3 {[%clk 0:02:19.9]} 12...
Bc6 {[%clk 0:02:05.3]} 13. Bg5 {[%clk 0:01:28.3]} 13... Bxg2 {[%clk 0:01:49.1]}
14. Kxg2 {[%clk 0:01:29.2]} 14... Qc6+ {[%clk 0:01:48.1]} 15. d5 {[%clk
0:01:22]} 15... Nxd5 {[%clk 0:01:44.1]} 16. Nxd5 {[%clk 0:01:21.5]} 16... Qxd5+
{[%clk 0:01:44.4]} 17. Qxd5 {[%clk 0:01:21.8]} 17... exd5 {[%clk 0:01:44.8]} 18.
Rfe1+ {[%clk 0:01:20.5]} 18... Kd7 {[%clk 0:01:42.7]} 19. Rad1 {[%clk
0:01:20.5]} 19... Kc6 {[%clk 0:01:16.3]} 20. Rc1+ {[%clk 0:01:19]} 20... Kb6
{[%clk 0:01:11.1]} 21. Red1 {[%clk 0:01:11.5]} 21... Bb4 {[%clk 0:00:49.4]} 22.
Rxd5 {[%clk 0:01:06.4]} 22... Rhc8 {[%clk 0:00:40.4]} 23. Be3+ {[%clk
0:00:51.1]} 23... Ka6 {[%clk 0:00:38.2]} 24. Rcd1 {[%clk 0:00:51.7]} 24... Rc7
{[%clk 0:00:30.5]} 25. a3 {[%clk 0:00:51]} 25... Bf8 {[%clk 0:00:27]} 26. b4
{[%clk 0:00:28.8]} 26... b6 {[%clk 0:00:22.4]} 27. b5+ {[%clk 0:00:21.2]} 27...
Kb7 {[%clk 0:00:22]} 28. a4 {[%clk 0:00:22.1]} 28... Rac8 {[%clk 0:00:20.4]} 29.
h4 {[%clk 0:00:16.8]} 29... Bc5 {[%clk 0:00:19.1]} 30. Bf4 {[%clk 0:00:16.4]}
30... Re7 {[%clk 0:00:18.6]} 31. Rd7+ {[%clk 0:00:16.8]} 31... Ka8 {[%clk
0:00:15.9]} 32. Rxe7 {[%clk 0:00:17.2]} 32... Bxe7 {[%clk 0:00:16.2]} 33. Rd7
{[%clk 0:00:18.1]} 33... Re8 {[%clk 0:00:16.6]} 34. Be3 {[%clk 0:00:15.1]} 34...
h6 {[%clk 0:00:16.5]} 35. a5 {[%clk 0:00:15.4]} 35... bxa5 {[%clk 0:00:11.3]}
36. Rxa7+ {[%clk 0:00:15.2]} 36... Kb8 {[%clk 0:00:11.8]} 37. b6 {[%clk
0:00:15.6]} 37... Bf6 {[%clk 0:00:09.8]} 38. Rxa5 {[%clk 0:00:10.9]} 38... Re7
{[%clk 0:00:09.6]} 39. Ra2 {[%clk 0:00:06.1]} 39... Kb7 {[%clk 0:00:09.9]} 40.
Rc2 {[%clk 0:00:06]} 40... Rd7 {[%clk 0:00:09.8]} 41. Kf3 {[%clk 0:00:06.1]}
41... Bd8 {[%clk 0:00:09.8]} 42. Ke4 {[%clk 0:00:04.6]} 42... Rd6 {[%clk
0:00:09.6]} 43. Rb2 {[%clk 0:00:03]} 43... Bf6 {[%clk 0:00:06.3]} 44. Rb3 {[%clk
0:00:03]} 44... Re6+ {[%clk 0:00:06.5]} 45. Kf3 {[%clk 0:00:03.3]} 45... Rd6
{[%clk 0:00:06.4]} 46. h5 {[%clk 0:00:03.4]} 46... Rd5 {[%clk 0:00:05.7]} 47.
Ke4 {[%clk 0:00:03.4]} 47... Rxh5 {[%clk 0:00:05.2]} 48. Rd3 {[%clk 0:00:04.1]}
48... Re5+ {[%clk 0:00:04]} 49. Kf3 {[%clk 0:00:03.5]} 49... Re7 {[%clk
0:00:04.9]} 50. Kg4 {[%clk 0:00:03.4]} 50... Kc6 {[%clk 0:00:05]} 51. Kf5 {[%clk
0:00:03.6]} 51... Rd7 {[%clk 0:00:05]} 52. Rb3 {[%clk 0:00:01.8]} 52... Kb7
{[%clk 0:00:05.2]} 53. Ke4 {[%clk 0:00:02]} 53... Re7+ {[%clk 0:00:05.5]} 54.
Kf3 {[%clk 0:00:02.6]} 54... Re6 {[%clk 0:00:05.7]} 55. Rd3 {[%clk 0:00:02.9]}
55... Re7 {[%clk 0:00:06.1]} 56. Rd1 {[%clk 0:00:03.2]} 56... Kc6 {[%clk
0:00:06.4]} 57. g4 {[%clk 0:00:03.7]} 57... Rd7 {[%clk 0:00:06.5]} 58. Rc1+
{[%clk 0:00:03.9]} 58... Kb7 {[%clk 0:00:06.9]} 59. Ra1 {[%clk 0:00:04.3]} 59...
Bd8 {[%clk 0:00:06.6]} 60. Ra7+ {[%clk 0:00:04.2]} 60... Kc6 {[%clk 0:00:07.2]}
61. Rxd7 {[%clk 0:00:04.4]} 61... Kxd7 {[%clk 0:00:07.3]} 62. b7 {[%clk
0:00:04.9]} 62... Kc7 {[%clk 0:00:07.2]} 63. Ke4 {[%clk 0:00:05.5]} 63... Kxb7
{[%clk 0:00:07.4]} 64. f3 {[%clk 0:00:06.1]} 64... Kc8 {[%clk 0:00:07.7]} 65.
Bf4 {[%clk 0:00:06]} 65... Kd7 {[%clk 0:00:08]} 66. Be3 {[%clk 0:00:06.4]} 66...
Ke6 {[%clk 0:00:08.5]} 67. f4 {[%clk 0:00:06.8]} 67... g6 {[%clk 0:00:06.8]} 68.
f5+ {[%clk 0:00:06.3]} 68... gxf5+ {[%clk 0:00:07.4]} 69. gxf5+ {[%clk
0:00:07.2]} 69... Kf6 {[%clk 0:00:07.5]} 70. Bxh6 {[%clk 0:00:08.1]} 70... Bc7
{[%clk 0:00:07.4]} 71. Be3 {[%clk 0:00:08.2]} 71... Bd6 {[%clk 0:00:07.1]} 72.
Bd2 {[%clk 0:00:08.6]} 72... Ke7 {[%clk 0:00:07.2]} 73. Kd5 {[%clk 0:00:07]}
73... Bg3 {[%clk 0:00:06.5]} 74. Bg5+ {[%clk 0:00:07.3]} 74... Kd7 {[%clk
0:00:06.8]} 75. Bf6 {[%clk 0:00:06]} 75... Bh2 {[%clk 0:00:07]} 76. Ke4 {[%clk
0:00:06.5]} 76... Bg3 {[%clk 0:00:07.1]} 77. Kf3 {[%clk 0:00:07]} 77... Bd6
{[%clk 0:00:06.2]} 78. Kg4 {[%clk 0:00:07.3]} 78... Ke8 {[%clk 0:00:06.1]} 79.
Kh5 {[%clk 0:00:07.4]} 79... Bb4 {[%clk 0:00:06]} 80. Kh6 {[%clk 0:00:07.5]}
80... Bc5 {[%clk 0:00:06.3]} 81. Kg7 {[%clk 0:00:07.9]} 81... Bb4 {[%clk
0:00:06.6]} 82. Kg8 {[%clk 0:00:08.3]} 82... Bc5 {[%clk 0:00:07]} 83. Bg7 {[%clk
0:00:08.8]} 83... Bb4 {[%clk 0:00:07.3]} 84. Bd4 {[%clk 0:00:09.2]} 84... Bd6
{[%clk 0:00:07.2]} 85. f6 {[%clk 0:00:08.1]} 85... Ba3 {[%clk 0:00:06.7]} 86.
Kg7 {[%clk 0:00:08.6]} 86... Bd6 {[%clk 0:00:06.3]} 87. Bc3 {[%clk 0:00:09.1]}
87... Bg3 {[%clk 0:00:06]} 88. Kh6 {[%clk 0:00:08.6]} 88... Bh4 {[%clk
0:00:05.9]} 89. Kh5 {[%clk 0:00:08.6]} 89... Bxf6 {[%clk 0:00:06]} 90. Bxf6
{[%clk 0:00:09.3]} 90... Kd7 {[%clk 0:00:05.4]} 91. Kg5 {[%clk 0:00:09.3]} 91...
Ke6 {[%clk 0:00:06.3]} 92. Bc3 {[%clk 0:00:09.3]} 92... f6+ {[%clk 0:00:06.8]}
93. Bxf6 {[%clk 0:00:09.7]} 1/2-1/2